Cogmind - Beta 13 X2 @@@ ROGUE MODE // 2024.01.08 @ 12:34:24 Player: alice_fexa Result: Destroyed by D-53 Grenadier with Mini Grenade Launcher Performance ------------- Evolutions (0) 0 Regions Visited (2) 400 Robots Destroyed (22) 110 Value Destroyed (445) 445 Prototype IDs (0) 0 Alien Tech Used (0) 0 Bonus (0) 0 TOTAL SCORE: 955 Bonus ------- None Cogmind --------- Core Integrity 0/250 Matter 300/300 Energy 250/250 System Corruption 0% Temperature Cool (0) Movement Rolling (115) Ox1 Location -10/Mines Parts ------- > --- POWER (1) -------- Ion Engine > --- PROPULSION (2) --- Light Treads Compact Wheel > --- UTILITY (2) ------ Large Storage Unit Light Armor Plating > --- WEAPON (2) ------- Small Laser Assault Rifle > --- INVENTORY (15) --- Light Ion Engine Light Nuclear Core Light Nuclear Core Light Treads Light Treads Improved Heat Sink High-capacity Matter Pod (150) Weight Redist. System Structural Scanner Sensor Array Small Laser Small Laser Small Laser Beam Cannon Mining Claw Peak State ------------ > --- POWER ------------ Ion Engine > --- PROPULSION ------- Light Treads Compact Wheel > --- UTILITY ---------- Large Storage Unit Light Armor Plating > --- WEAPON ----------- Light Assault Rifle Light Assault Rifle > --- INVENTORY -------- Light Ion Engine Light Ion Engine Light Nuclear Core Light Treads Light Treads Compact Wheel Improved Heat Sink Large Matter Pod Weight Redist. System Sensor Array Small Laser Small Laser Small Laser Small Laser Beam Cannon [Rating: 9] Favorites ----------- Power Ion Engine Engine Ion Engine Propulsion Light Treads Treads Light Treads Wheel Compact Wheel Utility Large Storage Unit Device Sensor Array Storage Large Storage Unit Protection Light Armor Plating Weapon Light Assault Rifle Energy Gun Small Laser Ballistic Gun Light Assault Rifle Build | -11 -10 -10 ------- Run | Yrd Mat Min Slots Evolved . | . . . Power . | . . . Propulsion . | . . . Utility . | . . . Weapon . | . . . Parts Attached 23 | 6 14 3 Power 5 | 1 3 1 Engine 5 | 1 3 1 Core . | . . . Reactor . | . . . Propulsion 5 | 2 2 1 Treads 2 | 1 1 . Leg . | . . . Wheel 3 | 1 1 1 Hover . | . . . Flight . | . . . Utility 5 | 1 4 . Device 1 | . 1 . Storage 2 | 1 1 . Processor . | . . . Hackware . | . . . Protection 2 | . 2 . Artifact . | . . . Weapon 8 | 2 5 1 Energy Gun 4 | 2 2 . Energy Cannon . | . . . Ballistic Gun 4 | . 3 1 Ballistic Cannon . | . . . Launcher . | . . . Special Weapon . | . . . Impact Weapon . | . . . Slashing Weapon . | . . . Piercing Weapon . | . . . Special Melee Weapon . | . . . Unidentified Prototypes . | . . . Parts Lost 1 | . . 1 Power . | . . . Propulsion 1 | . . 1 Utility . | . . . Weapon . | . . . Highest Loss Streak 1 | . . 1 To Critical Strikes . | . . . Average Slot Usage (%) 99 | . 99 99 Engine 14 | . 14 14 Treads 14 | . 14 14 Wheel 13 | . 14 13 Storage 14 | . 14 14 Protection 13 | . 12 14 Energy Gun 12 | . 11 14 Ballistic Gun 15 | . 16 14 Naked Turns . | . . . Heaviest Build 31 | 10 31 31 Greatest Support 20 | 20 16 20 Greatest Overweight (x) 3 | 1 3 2 Average Overweight (x) 1 | . 1 1 Largest Inventory Capacity 15 | 8 15 15 Average Capacity 14 | 7 14 15 Most Carried 15 | 4 15 15 Average Carried 12 | 2 12 14 Final Capacity 15 | 8 15 15 Final Carried 15 | 4 15 15 Class Distribution -------------------- 84% | Mutant 15% | Scavenger-Mutant Dominant Class ---------------- Mutant | -10/Materials Mutant | -10/Mines Resources | -11 -10 -10 ----------- Run | Yrd Mat Min Matter Collected 806 | 171 443 192 Remotely . | . . . Salvage Created 713 | . 628 85 Parts 47 | . 43 4 Haulers Intercepted 2 | . 2 . Recyclers Shooed 3 | . 2 1 Parts Field Recycled . | . . . Retrieved Matter . | . . . Parts Self-Destructed . | . . . Prevented . | . . . Kills | -11 -10 -10 ------- Run | Yrd Mat Min Combat Hostiles Destroyed 14 | . 12 2 Guns 14 | . 12 2 Classes Destroyed 7 | . 7 . Hauler 2 | . 2 . Recycler 1 | . 1 . Mechanic 1 | . 1 . Operator 1 | . 1 . Watcher 3 | . 3 . Swarmer 6 | . 6 . Grunt 8 | . 6 2 Best Kill Streak 3 | . 3 2 Combat Bots Only 3 | . 3 2 Max Kills in Single Turn 1 | . 1 1 Gunslinging . | . . . Exploded . | . . . Melee . | . . . Uniques/NPCs Destroyed . | . . . Combat | -11 -10 -10 -------- Run | Yrd Mat Min Hostile Shots Fired 76 | . 54 22 Missed 12 | . 10 2 Damage Taken 788 | . 473 315 Core 261 | . 119 142 Absorbed by Shields . | . . . Core Remaining (%) 100 | 100 . . Volleys Fired 70 | . 53 17 Largest 2 | . 2 2 Hottest 80 | . 80 60 Shots Fired 135 | . 106 29 Gun 135 | . 106 29 Cannon . | . . . Launcher . | . . . Special . | . . . Kinetic 81 | . 64 17 Thermal 34 | . 22 12 Explosive . | . . . Electromagnetic 20 | . 20 . Robot Hit Streak 18 | . 18 7 Robot Miss Streak 5 | . 5 2 Penetration Max . | . . . Secondary Targets . | . . . Shots Hit Robots 91 | . 71 20 Core Hits 44 | . 38 6 Critical Kills . | . . . Critical Parts Destroyed . | . . . Critical Strikes . | . . . Melee Attacks . | . . . Impact . | . . . Slashing . | . . . Piercing . | . . . Sneak Attacks . | . . . Combat Hostiles . | . . . Follow-up Attacks . | . . . Damage Inflicted 1003 | . 812 191 Guns 941 | . 750 191 Cannons . | . . . Explosions 62 | . 62 . Melee . | . . . Ramming . | . . . Kinetic 436 | . 333 103 Thermal 300 | . 212 88 Explosive . | . . . Electromagnetic 267 | . 267 . Impact . | . . . Slashing . | . . . Piercing . | . . . Highest Corruption . | . . . Average Corruption . | . . . Corruption Purged . | . . . Corruption Blocked . | . . . Overload Shots . | . . . Overflow Damage . | . . . Projectiles . | . . . Explosions . | . . . Melee . | . . . Knockbacks . | . . . Impact . | . . . Kinetic . | . . . Secondary . | . . . Self-Inflicted Damage . | . . . Shots . | . . . Rammed . | . . . Targets Rammed . | . . . Kicked . | . . . Crushed . | . . . Highest Temperature 282 | . 157 282 Average Temperature 69 | . 43 151 Received Heat Transfer 375 | . 225 150 Effects 4 | . . 4 Energy Bleed 2 | . . 2 Interference 2 | . . 2 Siege Activations . | . . . Robots Corrupted . | . . . Combat Hostiles . | . . . Parts Fried . | . . . Impact Corruptions . | . . . Robots Melted . | . . . Combat Hostiles . | . . . Parts Melted . | . . . Heat Transferred 650 | . 450 200 Parts Sabotaged . | . . . Parts Stolen . | . . . Parts Stripped . | . . . Power Chain Reactions 1 | . 1 . Missiles Intercepted . | . . . Alert | -11 -10 -10 ------- Run | Yrd Mat Min Peak Influence 269 | . 269 85 Initial 30 | . . 30 Average 86 | . 90 76 Maximum Alert Level 1 | . 1 . Low Security (%) 89 | 100 87 100 Level 1 10 | . 12 . Level 2 . | . . . Level 3 . | . . . Level 4 . | . . . Level 5 . | . . . High Security . | . . . Max Security . | . . . Squads Dispatched 1 | . 1 . Investigation 1 | . 1 . Extermination . | . . . Reinforcement . | . . . Assault . | . . . Garrison . | . . . Intercept . | . . . Searches Triggered . | . . . Construction Impeded . | . . . Haulers Reinforced . | . . . Active Scanning Responses . | . . . Cargo Convoy Interrupts . | . . . Stealth | -11 -10 -10 --------- Run | Yrd Mat Min Distress Signals 2 | . 2 . Communications Jammed . | . . . Distress Signals . | . . . Times Spotted 26 | . 20 6 Peak Tracking Total 4 | . 4 3 Tactical Retreats 2 | . 2 . Traps | -11 -10 -10 ------- Run | Yrd Mat Min Traps Triggered 1 | . 1 . Indirectly . | . . . Trap Hack Attempts . | . . . Triggered . | . . . Disarmed . | . . . Reprogrammed 10 | . 10 . Reused 2 | . 2 . Traps Extracted . | . . . Installed . | . . . Triggered 2 | . 2 . Machines | -11 -10 -10 ---------- Run | Yrd Mat Min Machines Disabled . | . . . Max in Single Turn . | . . . Machines Repaired . | . . . Machines Dismantled . | . . . Machines Sabotaged . | . . . Overloaded Fab Kills . | . . . Hacking | -11 -10 -10 --------- Run | Yrd Mat Min Machines Accessed 8 | . 8 . Terminals 7 | . 7 . Fabricators . | . . . Repair Stations . | . . . Recycling Units 1 | . 1 . Scanalyzers . | . . . Garrison Access . | . . . Total Hacks 23 | . 23 . Successful 15 | . 15 . Failed 8 | . 8 . Catastrophic 1 | . 1 . Database Lockouts . | . . . Manual 16 | . 16 . Terminals 22 | . 22 . Fabricators . | . . . Repair Stations . | . . . Recycling Units 1 | . 1 . Scanalyzers . | . . . Garrison Access . | . . . Terminal Hacks 13 | . 13 . Robot Analysis 3 | . 3 . Alert Level 1 | . 1 . Unreport Threat 1 | . 1 . Locate Traps 3 | . 3 . Reprogram Traps 2 | . 2 . Recall Investigation 1 | . 1 . Zone Layout 2 | . 2 . Fabricator Hacks . | . . . Repair Station Hacks . | . . . Recycling Unit Hacks 1 | . 1 . Retrieve Components 1 | . 1 . Scanalyzer . | . . . Garrison Access Hacks . | . . . Unauthorized Hacks 1 | . 1 . Terminals 1 | . 1 . Botnet 1 | . 1 . Fabricators . | . . . Repair Stations . | . . . Recycling Units . | . . . Scanalyzers . | . . . Garrison Access . | . . . Data Cores Recovered . | . . . Used . | . . . Hacking Detections 7 | . 7 . Full Trace Events . | . . . Feedback Events . | . . . Feedback Blocked . | . . . Robot Schematics Acquired . | . . . Robots Built . | . . . Authchips . | . . . Time . | . . . Total Robot Build Rating . | . . . Part Schematics Acquired . | . . . Parts Built . | . . . Authchips . | . . . Time . | . . . Total Part Build Rating . | . . . Parts Repaired . | . . . Time . | . . . Parts Recycled . | . . . Recycled Matter . | . . . Retrieved Matter . | . . . Retrieved Components 2 | . 2 . Parts Scanalyzed . | . . . Part Schematics Acquired . | . . . Parts Damaged . | . . . Bothacking | -11 -10 -10 ------------ Run | Yrd Mat Min Used RIF Installer . | . . . Robots Hacked . | . . . Non-combat . | . . . Combat . | . . . Robot Hacks Applied . | . . . Relay Couplers Released . | . . . Fabnet Peak Effective % . | . . . Robots Rewired . | . . . Allies Hacked . | . . . Hacks Repelled . | . . . Allies | -11 -10 -10 -------- Run | Yrd Mat Min Total Allies . | . . . Largest Group . | . . . Highest-Rated Group . | . . . Highest-Rated Ally . | . . . Total Orders . | . . . Ally Attacks . | . . . Total Damage . | . . . Kills . | . . . Allies Corrupted . | . . . Allies Melted . | . . . Intel | -11 -10 -10 ------- Run | Yrd Mat Min Robot Analysis Total 3 | . 3 . Derelict Logs Recovered . | . . . Drone Launches . | . . . Drone Recoveries . | . . . Exploration | -11 -10 -10 ------------- Run | Yrd Mat Min Turns Passed 1351 | 46 1144 161 Spaces Moved 845 | 34 718 93 Core 3 | 3 . . Treads 2 | 1 . 1 Legs . | . . . Wheels 840 | 30 718 92 Hover . | . . . Flight . | . . . Fastest Speed 50 | 50 100 110 Average Speed 115 | 98 116 116 Slowest Speed 240 | 160 125 240 Overloaded Moves . | . . . Propulsion Burnouts . | . . . Robots Hopped . | . . . Cave-ins Triggered . | . . . Exploration Rate (%) 40 | 4 94 24 Regions Visited 2 Branch Regions 1 Pre-discovered Areas . | . . . Known Exits Taken . | . . . Unknown Exits Taken 2 | 1 1 . Scrap Searched 2 | . . 2 Spaces Dug . | . . . Terrain Destroyed 5 | . 5 . Melee . | . . . Projectile . | . . . AOE 5 | . 5 . Terrain Rammed . | . . . Walls Destroyed . | . . . Machines Disabled . | . . . Actions | -11 -10 -10 --------- Run | Yrd Mat Min Total 1104 | 43 938 123 Wait 125 | . 120 5 Move 843 | 33 717 93 Hop . | . . . Pick Up 20 | 4 14 2 Fast Attach 14 | 6 8 . Attach 1 | . . 1 Detach 4 | . 4 . Swap 8 | . 6 2 Drop 19 | . 16 3 Fire 70 | . 53 17 Melee . | . . . Ram . | . . . Kick . | . . . Crush . | . . . Escape Stasis . | . . . Rewire . | . . . Trap . | . . . Miscellaneous . | . . . Route ------- -11/Scrapyard -10/Materials (discovered 4 exits: [*Mat x3] / [*Min]) -10/Mines (discovered 1 exit: [*Mat]) History --------- Turn | Location | Event 30 | -11/Scrapyard | Discovered new exit (range 15) 47 | -11/Scrapyard | Entered Materials 305 | -10/Materials | Build established: Mutant 387 | -10/Materials | Discovered new exit (range 6) 487 | -10/Materials | Discovered new exit (range 15) 778 | -10/Materials | Discovered new exit (range 16) 1121 | -10/Materials | Discovered new exit (range 15) 1191 | -10/Materials | Entered Mines 1193 | -10/Mines | Core integrity fell below 50% 1229 | -10/Mines | Core integrity fell below 20% 1284 | -10/Mines | Discovered new exit (range 7) 1343 | -10/Mines | Assembled infested the area 1352 | -10/Mines | Destroyed by D-53 Grenadier with Mini Grenade Launcher Last Messages --------------- 01265_ Acquired 10 matter. 01270_ Dropped Ion Engine. 01284_ EXIT=FOUND 01315_ Acquired 10 matter. 01320_ U-05 Engineer lays Concrete. 01342_ Searching scrap... 01342_ Found Hcp. Matter Pod. 01342_ Found Signal Interpreter. 01342_ Found 21 Matter. 01343_ ALERT: Infestation in the mines, dispatching Demolisher response squad. 01344_ Dropped Lrg. Matter Pod. 01344_ Acquired Hcp. Matter Pod. 01345_ Extracted 150 matter. 01345_ R-06 Scavenger collects Lrg. Matter Pod. 01347_ T-07 Excavator is excavating. 01351_ as-55920 sneak attacks. 01351_ R-06 Scavenger destroyed. 01352_ C-30 ARC bursts open, deploying its payload. 01352_ D-53 Grenadier unfolds itself. Map ----- +----------------------------------------------------+ | | | | | | | | | | | | | ?????????????????????????????????????????????????? | | ?????????????????????????????????????????????????? | | ???????????????????########????????######????????? | | ???????????????????# #???????## #???????# | | ???????????????????# #???????# ##???## | | ???????????????????# #???????# #### | | ???????????????????# #????????# | | ???????????????????# #####?????# | | ???????????????????#### ### t ##????# | | ??????????????????????# #?# t ?????## | | ??????????????????????#%#### ##?????##### ### | | ??????????????????????# ########??## #### | | ??????????????????????### u % ##### #### | | ????????????????????????# ! | | ????????????????????????## ##### | | ????????????????????????# ##???########### | | ????????????#### ######## ##??????????????# | | ??????????# ####???????????????## | | ????????????############# #???????????????????### | | ?????????????????????####@ #?????????????????????? | | ?????????????????????# d #?????????????????????? | | ?????????????????????#k##*=#?????????????????????? | | ?????????????????????# ?#*!#?????????????????????? | | ?????????????????????#??#[%#?????????????????????? | | ????????????????????????#!=a ??????????????????? | | ????????????????????????# = ??????????????? | | ????????????????????????# ??????????? | | ????????????????????????## #?????????? | | ?????????????????????????### #??????????? | | ????????????????????????????# ##??????????? | | ?????????????????????????????a ####???????????? | | ?????????????????????????????a #??????????????? | | ?????????????????????????????? #??????????????? | | ?????????????????????????????? ??????????????? | | ??????????????????????????????? #?????????????? | | ??????????????????????????????? ##?????????????? | | ????????????????????????????????##???????????????? | | ?????????????????????????????????????????????????? | | ?????????????????????????????????????????????????? | | ?????????????????????????????????????????????????? | | ?????????????????????????????????????????????????? | | ?????????????????????????????????????????????????? | | ?????????????????????????????????????????????????? | | ?????????????????????????????????????????????????? | +----------------------------------------------------+ Best States ------------- Heat Dissipation 25 Energy Generation 10 Energy Capacity 250 Matter Stores 300 Matter Capacity 300 Sight Range 16 Robot Scan Range 14 Terrain Scan Density 10 Armor Coverage 150 Evasion (%) 40 Recoil Reduction 1 Item Schematics ----------------- None Robot Schematics ------------------ None Fabricated ------------ Nothing Alien Tech Used ----------------- None Achievements -------------- None Challenges ------------ None Game ------ Seed SurveybotImprovedTrap Manual? 0 Play Time 00:08:04 Cumulative 1353.6 hours Start 2024.01.08 @ 12:27:10 End 2024.01.08 @ 12:34:24 Sessions 1 Manual Loads 0 Difficulty Rogue Special Mode None Game No. 978 Rogue 938 Adventurer 40 Explorer 0 Win Type - Total 168 Types 77/8/57/2/1/4/16/2/1 Lore% 94 Gallery% 97 Achievement% 86 Wizard Run 0 Options --------- ASCII 0 Keyboard 0 Movement Numpad Keybinds 0 Fullscreen 0 Font 20/Terminus Map View 76x50 Zoom Use 0% Tactical HUD 1 Map Filters NONE Filters NONE Steam 1 RUN: 94a8fb2d-9e5e-43bf-b808-aefd7392f784